[Event "Titled Tuesday Blitz May 10 Early 2022"]
[White "Shohat, Yotam"]
[Black "Ivanisevic, Ivan"]
[WhiteFideId "2813955"]
[BlackFideId "912417"]
[WhiteElo "2119"]
[BlackElo "2495"]
[Result "0-1"]
[Round "03"]
[TimeControl "180+1"]
[Date "2022.05.11"]
[WhiteClock "0:00:01"]
[BlackClock "0:00:13"]

1. e4 {[%clk 0:02:40]}  e5 {[%clk 0:03:00]} 2. Nf3 {[%clk 0:02:34]}  Nc6 {[%clk 0:03:00]} 3. Bb5 {[%clk 0:02:32]}  a6 {[%clk 0:02:59]} 4. Ba4 {[%clk 0:02:31]}  Nf6 {[%clk 0:03:00]} 5. O-O {[%clk 0:02:31]}  Be7 {[%clk 0:03:00]} 6. Re1 {[%clk 0:02:30]}  b5 {[%clk 0:03:00]} 7. Bb3 {[%clk 0:02:30]}  O-O {[%clk 0:03:00]} 8. h3 {[%clk 0:02:30]}  Bb7 {[%clk 0:02:58]} 9. d3 {[%clk 0:02:30]}  d5 {[%clk 0:02:58]} 10. exd5 {[%clk 0:02:21]}  Nxd5 {[%clk 0:02:59]} 11. Nbd2 {[%clk 0:02:21]}  a5 {[%clk 0:02:17]} 12. a4 {[%clk 0:02:04]}  bxa4 {[%clk 0:02:17]} 13. Rxa4 {[%clk 0:02:03]}  Nb6 {[%clk 0:02:14]} 14. Rg4 {[%clk 0:01:59]}  a4 {[%clk 0:02:07]} 15. Ba2 {[%clk 0:01:53]}  Nb4 {[%clk 0:01:58]} 16. Bb1 {[%clk 0:01:53]}  f5 {[%clk 0:01:53]} 17. Rxb4 {[%clk 0:01:29]}  Bxb4 {[%clk 0:01:54]} 18. Nxe5 {[%clk 0:01:29]}  Qf6 {[%clk 0:01:43]} 19. c3 {[%clk 0:01:20]}  Bd6 {[%clk 0:01:42]} 20. d4 {[%clk 0:01:20]}  Kh8 {[%clk 0:01:39]} 21. Ndf3 {[%clk 0:01:05]}  h6 {[%clk 0:01:20]} 22. Ba2 {[%clk 0:00:42]}  Be4 {[%clk 0:01:09]} 23. c4 {[%clk 0:00:24]}  a3 {[%clk 0:01:05]} 24. bxa3 {[%clk 0:00:10]}  Bxa3 {[%clk 0:01:03]} 25. Bd2 {[%clk 0:00:09]}  c5 {[%clk 0:00:44]} 26. Bc3 {[%clk 0:00:07]}  Na4 {[%clk 0:00:34]} 27. Ba1 {[%clk 0:00:06]}  Bb2 {[%clk 0:00:28]} 28. Nd7 {[%clk 0:00:05]}  Qd6 {[%clk 0:00:25]} 29. Nxf8 {[%clk 0:00:05]}  Nc3 {[%clk 0:00:19]} 30. Qb3 {[%clk 0:00:03]}  Bxa1 {[%clk 0:00:18]} 31. Ng6+ {[%clk 0:00:01]}  Qxg6 {[%clk 0:00:17]} 32. Ne5 {[%clk 0:00:02]}  Qf6 {[%clk 0:00:17]} 33. Rxa1 {[%clk 0:00:02]}  cxd4 {[%clk 0:00:16]} 34. c5 {[%clk 0:00:01]}  Qxe5 {[%clk 0:00:14]} 35. Qc4 {[%clk 0:00:01]}  Rxa2 {[%clk 0:00:13]} 0-1


[Site "https://www.chess.com"]

[Event "Titled Tuesday Blitz May 10 Early 2022"]
[White "Silva, Winston Joseph R"]
[Black "Ajay Krishna, S"]
[WhiteFideId "5210542"]
[BlackFideId "5096430"]
[WhiteElo "1995"]
[BlackElo "2247"]
[Result "0-1"]
[Round "03"]
[TimeControl "180+1"]
[Date "2022.05.11"]
[WhiteClock "0:01:13"]
[BlackClock "0:02:16"]

1. d4 {[%clk 0:03:00]}  d5 {[%clk 0:02:54]} 2. e3 {[%clk 0:03:00]}  Nf6 {[%clk 0:02:54]} 3. Bd3 {[%clk 0:03:00]}  g6 {[%clk 0:02:52]} 4. Nd2 {[%clk 0:03:00]}  c5 {[%clk 0:02:52]} 5. c3 {[%clk 0:03:00]}  c4 {[%clk 0:02:50]} 6. Bc2 {[%clk 0:02:59]}  Bg7 {[%clk 0:02:49]} 7. f4 {[%clk 0:02:59]}  O-O {[%clk 0:02:49]} 8. Ngf3 {[%clk 0:03:00]}  b5 {[%clk 0:02:49]} 9. O-O {[%clk 0:03:00]}  a5 {[%clk 0:02:48]} 10. Ne5 {[%clk 0:03:00]}  Bb7 {[%clk 0:02:48]} 11. Qf3 {[%clk 0:02:59]}  b4 {[%clk 0:02:46]} 12. Nexc4 {[%clk 0:02:58]}  Ba6 {[%clk 0:02:45]} 13. Re1 {[%clk 0:02:53]}  bxc3 {[%clk 0:02:45]} 14. bxc3 {[%clk 0:02:53]}  Bxc4 {[%clk 0:02:35]} 15. Nxc4 {[%clk 0:02:52]}  Qc7 {[%clk 0:02:35]} 16. Bd3 {[%clk 0:01:23]}  dxc4 {[%clk 0:02:33]} 17. Qxa8 {[%clk 0:01:23]}  cxd3 {[%clk 0:02:33]} 18. Ba3 {[%clk 0:01:22]}  d2 {[%clk 0:02:17]} 19. Red1 {[%clk 0:01:18]}  Qxc3 {[%clk 0:02:16]} 20. Bxe7 {[%clk 0:01:13]}  Qxe3+ {[%clk 0:02:16]} 0-1


[Site "https://www.chess.com"]

[Event "Titled Tuesday Blitz May 10 Early 2022"]
[White "Silvestre, Christian"]
[Black "Perdomo, Carlos Andres"]
[WhiteFideId "30956269"]
[BlackFideId "4400852"]
[WhiteElo "2370"]
[BlackElo "2268"]
[Result "0-1"]
[Round "03"]
[TimeControl "180+1"]
[Date "2022.05.11"]
[WhiteClock "0:00:43"]
[BlackClock "0:01:37"]

1. d4 {[%clk 0:03:00]}  Nf6 {[%clk 0:02:59]} 2. Nf3 {[%clk 0:03:00]}  e6 {[%clk 0:02:59]} 3. g3 {[%clk 0:03:00]}  Be7 {[%clk 0:02:59]} 4. Bg2 {[%clk 0:03:00]}  O-O {[%clk 0:02:59]} 5. O-O {[%clk 0:03:00]}  d5 {[%clk 0:02:59]} 6. c4 {[%clk 0:03:00]}  b6 {[%clk 0:02:58]} 7. Qc2 {[%clk 0:02:58]}  Bb7 {[%clk 0:02:58]} 8. Rd1 {[%clk 0:02:58]}  dxc4 {[%clk 0:02:53]} 9. Qxc4 {[%clk 0:02:55]}  c5 {[%clk 0:02:53]} 10. Nc3 {[%clk 0:02:52]}  Qc8 {[%clk 0:02:42]} 11. Bg5 {[%clk 0:02:39]}  Nbd7 {[%clk 0:02:39]} 12. Rac1 {[%clk 0:02:33]}  h6 {[%clk 0:02:37]} 13. Bf4 {[%clk 0:02:31]}  cxd4 {[%clk 0:02:26]} 14. Qxd4 {[%clk 0:02:30]}  Bc5 {[%clk 0:02:26]} 15. Qa4 {[%clk 0:02:25]}  Bc6 {[%clk 0:02:22]} 16. Qc2 {[%clk 0:02:20]}  Ng4 {[%clk 0:02:09]} 17. e3 {[%clk 0:01:35]}  e5 {[%clk 0:02:09]} 18. Qf5 {[%clk 0:01:31]}  exf4 {[%clk 0:02:02]} 19. Qxg4 {[%clk 0:01:28]}  fxe3 {[%clk 0:02:02]} 20. b4 {[%clk 0:01:17]}  exf2+ {[%clk 0:01:52]} 21. Kh1 {[%clk 0:01:16]}  Be3 {[%clk 0:01:49]} 22. Rc2 {[%clk 0:01:01]}  Nf6 {[%clk 0:01:48]} 23. Qh4 {[%clk 0:00:43]}  Qb7 {[%clk 0:01:37]} 0-1


[Site "https://www.chess.com"]

[Event "Titled Tuesday Blitz May 10 Early 2022"]
[White "Stankovic, Ivan G"]
[Black "Griffith, Kyron"]
[WhiteFideId "902837"]
[BlackFideId "2046318"]
[WhiteElo "2195"]
[BlackElo "2232"]
[Result "1-0"]
[Round "03"]
[TimeControl "180+1"]
[Date "2022.05.11"]
[WhiteClock "0:02:13"]
[BlackClock "0:00:15"]

1. e4 {[%clk 0:03:00]}  c5 {[%clk 0:02:42]} 2. c4 {[%clk 0:03:00]}  Nc6 {[%clk 0:02:42]} 3. Nc3 {[%clk 0:02:58]}  g6 {[%clk 0:02:41]} 4. g3 {[%clk 0:02:58]}  Bg7 {[%clk 0:02:41]} 5. Bg2 {[%clk 0:02:58]}  d6 {[%clk 0:02:40]} 6. d3 {[%clk 0:02:59]}  e6 {[%clk 0:02:37]} 7. Nge2 {[%clk 0:02:59]}  Nge7 {[%clk 0:02:37]} 8. Be3 {[%clk 0:02:59]}  Nd4 {[%clk 0:02:35]} 9. Rb1 {[%clk 0:02:59]}  Nec6 {[%clk 0:02:34]} 10. a3 {[%clk 0:02:59]}  a5 {[%clk 0:02:34]} 11. O-O {[%clk 0:02:59]}  O-O {[%clk 0:02:34]} 12. Nb5 {[%clk 0:02:58]}  Nxb5 {[%clk 0:01:54]} 13. cxb5 {[%clk 0:02:58]}  Nd4 {[%clk 0:01:45]} 14. Nxd4 {[%clk 0:02:58]}  cxd4 {[%clk 0:01:45]} 15. Bd2 {[%clk 0:02:58]}  a4 {[%clk 0:01:37]} 16. b3 {[%clk 0:02:58]}  axb3 {[%clk 0:01:30]} 17. Qxb3 {[%clk 0:02:58]}  e5 {[%clk 0:01:23]} 18. a4 {[%clk 0:02:58]}  Be6 {[%clk 0:01:22]} 19. Qa3 {[%clk 0:02:58]}  Re8 {[%clk 0:01:22]} 20. a5 {[%clk 0:02:56]}  Bf8 {[%clk 0:01:20]} 21. Bb4 {[%clk 0:02:38]}  Qd7 {[%clk 0:01:20]} 22. b6 {[%clk 0:02:37]}  Rec8 {[%clk 0:01:19]} 23. Rbc1 {[%clk 0:02:36]}  h5 {[%clk 0:01:14]} 24. h4 {[%clk 0:02:35]}  Kg7 {[%clk 0:01:12]} 25. f4 {[%clk 0:02:24]}  Bg4 {[%clk 0:01:02]} 26. fxe5 {[%clk 0:02:16]}  dxe5 {[%clk 0:01:01]} 27. Bxf8+ {[%clk 0:02:15]}  Rxf8 {[%clk 0:00:58]} 28. Rc7 {[%clk 0:02:15]}  Qb5 {[%clk 0:00:25]} 29. Qd6 {[%clk 0:02:14]}  Rxa5 {[%clk 0:00:18]} 30. Qf6+ {[%clk 0:02:13]}  Kg8 {[%clk 0:00:15]} 31. Rxf7 {[%clk 0:02:13]} 1-0


[Site "https://www.chess.com"]

[Event "Titled Tuesday Blitz May 10 Early 2022"]
[White "Stevens, Christian"]
[Black "Cherniaiev, Tykhon"]
[WhiteFideId "2604450"]
[BlackFideId "14182360"]
[WhiteElo "2475"]
[BlackElo "2289"]
[Result "0-1"]
[Round "03"]
[TimeControl "180+1"]
[Date "2022.05.11"]
[WhiteClock "0:00:01"]
[BlackClock "0:00:03"]

1. d4 {[%clk 0:03:00]}  Nf6 {[%clk 0:02:58]} 2. c4 {[%clk 0:03:01]}  e6 {[%clk 0:02:49]} 3. Nc3 {[%clk 0:03:00]}  d5 {[%clk 0:02:47]} 4. cxd5 {[%clk 0:03:01]}  exd5 {[%clk 0:02:46]} 5. Qc2 {[%clk 0:03:01]}  Be7 {[%clk 0:02:46]} 6. Bg5 {[%clk 0:02:59]}  O-O {[%clk 0:02:45]} 7. e3 {[%clk 0:02:59]}  c6 {[%clk 0:02:45]} 8. Bd3 {[%clk 0:02:58]}  h6 {[%clk 0:02:44]} 9. Bh4 {[%clk 0:02:58]}  Nh5 {[%clk 0:02:44]} 10. Bg3 {[%clk 0:02:46]}  Nxg3 {[%clk 0:02:21]} 11. hxg3 {[%clk 0:02:47]}  Re8 {[%clk 0:02:10]} 12. Nf3 {[%clk 0:02:46]}  Bf6 {[%clk 0:02:09]} 13. O-O {[%clk 0:02:38]}  Bg4 {[%clk 0:02:07]} 14. Bf5 {[%clk 0:02:37]}  Bxf5 {[%clk 0:02:06]} 15. Qxf5 {[%clk 0:02:37]}  Na6 {[%clk 0:02:06]} 16. Rab1 {[%clk 0:02:35]}  Nc7 {[%clk 0:02:05]} 17. b4 {[%clk 0:02:33]}  a6 {[%clk 0:02:03]} 18. a4 {[%clk 0:02:32]}  Re6 {[%clk 0:01:58]} 19. b5 {[%clk 0:02:30]}  Ne8 {[%clk 0:01:58]} 20. bxc6 {[%clk 0:02:29]}  bxc6 {[%clk 0:01:57]} 21. Rfc1 {[%clk 0:02:28]}  Nd6 {[%clk 0:01:57]} 22. Qd3 {[%clk 0:02:28]}  Rc8 {[%clk 0:01:53]} 23. Qxa6 {[%clk 0:02:27]}  Nc4 {[%clk 0:01:52]} 24. Qb7 {[%clk 0:02:19]}  Be7 {[%clk 0:01:36]} 25. Qb3 {[%clk 0:02:16]}  Bd6 {[%clk 0:01:33]} 26. Ne2 {[%clk 0:01:58]}  g5 {[%clk 0:01:24]} 27. Qd3 {[%clk 0:01:53]}  Ra8 {[%clk 0:01:15]} 28. Ra1 {[%clk 0:01:46]}  Qf6 {[%clk 0:01:14]} 29. Nd2 {[%clk 0:01:41]}  Nxd2 {[%clk 0:01:06]} 30. Qxd2 {[%clk 0:01:40]}  Bc7 {[%clk 0:01:02]} 31. a5 {[%clk 0:01:38]}  h5 {[%clk 0:00:58]} 32. a6 {[%clk 0:01:33]}  h4 {[%clk 0:00:58]} 33. a7 {[%clk 0:00:53]}  hxg3 {[%clk 0:00:45]} 34. Nxg3 {[%clk 0:00:48]}  Bxg3 {[%clk 0:00:44]} 35. fxg3 {[%clk 0:00:48]}  Qe7 {[%clk 0:00:45]} 36. Qb2 {[%clk 0:00:33]}  Rh6 {[%clk 0:00:35]} 37. Rc3 {[%clk 0:00:24]}  Qc7 {[%clk 0:00:23]} 38. Qf2 {[%clk 0:00:07]}  Rxa7 {[%clk 0:00:22]} 39. Rf1 {[%clk 0:00:05]}  Qd6 {[%clk 0:00:18]} 40. Qf3 {[%clk 0:00:04]}  Re7 {[%clk 0:00:17]} 41. Qg4 {[%clk 0:00:03]}  Re4 {[%clk 0:00:09]} 42. Qxg5+ {[%clk 0:00:02]}  Rg6 {[%clk 0:00:09]} 43. Qf5 {[%clk 0:00:02]}  Re7 {[%clk 0:00:07]} 44. Rf4 {[%clk 0:00:01]}  Kg7 {[%clk 0:00:03]} 0-1


[Site "https://www.chess.com"]

[Event "Titled Tuesday Blitz May 10 Early 2022"]
[White "Sychev, Klementy"]
[Black "Aldokhin, Ivan"]
[WhiteFideId "4114060"]
[BlackFideId "24115720"]
[WhiteElo "2564"]
[BlackElo "2231"]
[Result "1-0"]
[Round "03"]
[TimeControl "180+1"]
[Date "2022.05.10"]
[WhiteClock "0:00:30"]
[BlackClock "0:00:05"]

1. e4 {[%clk 0:03:00]}  c5 {[%clk 0:02:59]} 2. g3 {[%clk 0:03:00]}  d5 {[%clk 0:02:59]} 3. exd5 {[%clk 0:03:01]}  Qxd5 {[%clk 0:02:59]} 4. Nf3 {[%clk 0:03:01]}  Nc6 {[%clk 0:02:52]} 5. Nc3 {[%clk 0:02:56]}  Qd8 {[%clk 0:02:27]} 6. Bg2 {[%clk 0:02:45]}  Nf6 {[%clk 0:02:25]} 7. O-O {[%clk 0:02:45]}  Bg4 {[%clk 0:02:20]} 8. h3 {[%clk 0:02:44]}  Bh5 {[%clk 0:02:19]} 9. g4 {[%clk 0:02:35]}  Bg6 {[%clk 0:02:18]} 10. Nh4 {[%clk 0:02:35]}  e6 {[%clk 0:02:15]} 11. d3 {[%clk 0:02:27]}  Be7 {[%clk 0:02:08]} 12. Be3 {[%clk 0:02:23]}  Nd5 {[%clk 0:01:47]} 13. Nxd5 {[%clk 0:02:13]}  Bxh4 {[%clk 0:01:36]} 14. Nc3 {[%clk 0:02:12]}  Be7 {[%clk 0:01:23]} 15. f4 {[%clk 0:02:12]}  Qd7 {[%clk 0:00:59]} 16. Ne4 {[%clk 0:02:08]}  Bxe4 {[%clk 0:00:24]} 17. Bxe4 {[%clk 0:02:03]}  O-O {[%clk 0:00:23]} 18. f5 {[%clk 0:02:03]}  exf5 {[%clk 0:00:22]} 19. Rxf5 {[%clk 0:02:01]}  Nd4 {[%clk 0:00:19]} 20. Rd5 {[%clk 0:01:59]}  Qc7 {[%clk 0:00:13]} 21. Kg2 {[%clk 0:01:55]}  Rad8 {[%clk 0:00:13]} 22. Rxd8 {[%clk 0:01:53]}  Rxd8 {[%clk 0:00:13]} 23. c3 {[%clk 0:01:54]}  Ne6 {[%clk 0:00:13]} 24. Qf3 {[%clk 0:01:55]}  Bg5 {[%clk 0:00:12]} 25. Rf1 {[%clk 0:01:45]}  Bxe3 {[%clk 0:00:12]} 26. Qxe3 {[%clk 0:01:46]}  g5 {[%clk 0:00:12]} 27. Rf5 {[%clk 0:01:39]}  h6 {[%clk 0:00:11]} 28. h4 {[%clk 0:01:38]}  Kg7 {[%clk 0:00:11]} 29. Kf1 {[%clk 0:01:19]}  f6 {[%clk 0:00:06]} 30. Rd5 {[%clk 0:01:11]}  Rxd5 {[%clk 0:00:03]} 31. Bxd5 {[%clk 0:01:12]}  Nf4 {[%clk 0:00:02]} 32. Bb3 {[%clk 0:01:09]}  Qd7 {[%clk 0:00:03]} 33. Bc4 {[%clk 0:00:57]}  b5 {[%clk 0:00:02]} 34. hxg5 {[%clk 0:00:54]}  hxg5 {[%clk 0:00:02]} 35. Bb3 {[%clk 0:00:48]}  Qxd3+ {[%clk 0:00:03]} 36. Kf2 {[%clk 0:00:48]}  Qxe3+ {[%clk 0:00:03]} 37. Kxe3 {[%clk 0:00:48]}  c4 {[%clk 0:00:04]} 38. Bc2 {[%clk 0:00:48]}  Kf7 {[%clk 0:00:05]} 39. Bf5 {[%clk 0:00:48]}  Ke7 {[%clk 0:00:05]} 40. Kd4 {[%clk 0:00:47]}  Kd6 {[%clk 0:00:06]} 41. a4 {[%clk 0:00:48]}  a6 {[%clk 0:00:06]} 42. a5 {[%clk 0:00:46]}  Ne2+ {[%clk 0:00:06]} 43. Ke3 {[%clk 0:00:45]}  Nc1 {[%clk 0:00:05]} 44. Bc8 {[%clk 0:00:44]}  Nb3 {[%clk 0:00:03]} 45. Ke4 {[%clk 0:00:41]}  Nxa5 {[%clk 0:00:03]} 46. Bxa6 {[%clk 0:00:40]}  Kc5 {[%clk 0:00:03]} 47. Kf5 {[%clk 0:00:40]}  b4 {[%clk 0:00:01]} 48. Kxf6 {[%clk 0:00:39]}  bxc3 {[%clk 0:00:02]} 49. bxc3 {[%clk 0:00:40]}  Nc6 {[%clk 0:00:02]} 50. Kxg5 {[%clk 0:00:38]}  Ne5 {[%clk 0:00:03]} 51. Kf5 {[%clk 0:00:37]}  Nd7 {[%clk 0:00:03]} 52. g5 {[%clk 0:00:33]}  Kd5 {[%clk 0:00:04]} 53. g6 {[%clk 0:00:31]}  Nc5 {[%clk 0:00:05]} 54. g7 {[%clk 0:00:30]} 1-0


[Site "https://www.chess.com"]

[Event "Titled Tuesday Blitz May 10 Early 2022"]
[White "Toncheva, Nadya"]
[Black "Piesik, Piotr"]
[WhiteFideId "2924056"]
[BlackFideId "1136194"]
[WhiteElo "1888"]
[BlackElo "2190"]
[Result "0-1"]
[Round "03"]
[TimeControl "180+1"]
[Date "2022.05.11"]
[WhiteClock "0:00:01"]
[BlackClock "0:00:35"]

1. d4 {[%clk 0:03:00]}  c5 {[%clk 0:02:58]} 2. d5 {[%clk 0:03:00]}  e5 {[%clk 0:02:57]} 3. e4 {[%clk 0:03:00]}  d6 {[%clk 0:02:57]} 4. Nf3 {[%clk 0:02:58]}  Be7 {[%clk 0:02:57]} 5. Be2 {[%clk 0:02:53]}  a6 {[%clk 0:02:56]} 6. a4 {[%clk 0:02:52]}  Bg4 {[%clk 0:02:56]} 7. O-O {[%clk 0:02:50]}  Bxf3 {[%clk 0:02:55]} 8. Bxf3 {[%clk 0:02:51]}  Bg5 {[%clk 0:02:56]} 9. Nd2 {[%clk 0:02:49]}  Bxd2 {[%clk 0:02:54]} 10. Bxd2 {[%clk 0:02:48]}  Ne7 {[%clk 0:02:55]} 11. g3 {[%clk 0:02:41]}  O-O {[%clk 0:02:55]} 12. Bg2 {[%clk 0:02:41]}  Nd7 {[%clk 0:02:55]} 13. a5 {[%clk 0:02:23]}  f5 {[%clk 0:02:53]} 14. exf5 {[%clk 0:02:19]}  Nxf5 {[%clk 0:02:54]} 15. f4 {[%clk 0:01:46]}  Qe7 {[%clk 0:02:42]} 16. fxe5 {[%clk 0:01:45]}  Nxe5 {[%clk 0:02:41]} 17. Bh3 {[%clk 0:01:02]}  Nd4 {[%clk 0:02:36]} 18. Bf4 {[%clk 0:00:56]}  g5 {[%clk 0:02:28]} 19. Bxe5 {[%clk 0:00:52]}  Qxe5 {[%clk 0:02:29]} 20. c3 {[%clk 0:00:40]}  Nf5 {[%clk 0:02:22]} 21. Bxf5 {[%clk 0:00:39]}  Rxf5 {[%clk 0:02:22]} 22. Qd3 {[%clk 0:00:35]}  Raf8 {[%clk 0:02:15]} 23. Rxf5 {[%clk 0:00:30]}  Rxf5 {[%clk 0:02:16]} 24. Rf1 {[%clk 0:00:30]}  Rxf1+ {[%clk 0:02:07]} 25. Kxf1 {[%clk 0:00:31]}  Kg7 {[%clk 0:02:07]} 26. Kf2 {[%clk 0:00:27]}  h5 {[%clk 0:02:05]} 27. b3 {[%clk 0:00:25]}  Kf6 {[%clk 0:02:05]} 28. Qf3+ {[%clk 0:00:23]}  Kg6 {[%clk 0:01:53]} 29. Qd3+ {[%clk 0:00:18]}  Kh6 {[%clk 0:01:40]} 30. Qf3 {[%clk 0:00:18]}  Kg7 {[%clk 0:01:36]} 31. Qd3 {[%clk 0:00:17]}  h4 {[%clk 0:01:33]} 32. Qf3 {[%clk 0:00:17]}  hxg3+ {[%clk 0:01:29]} 33. hxg3 {[%clk 0:00:18]}  Kh6 {[%clk 0:00:53]} 34. Qd3 {[%clk 0:00:18]}  Kh5 {[%clk 0:00:52]} 35. Qf3+ {[%clk 0:00:18]}  g4 {[%clk 0:00:52]} 36. Qf7+ {[%clk 0:00:18]}  Kg5 {[%clk 0:00:53]} 37. Qg8+ {[%clk 0:00:18]}  Kf5 {[%clk 0:00:52]} 38. Qh7+ {[%clk 0:00:18]}  Kf6 {[%clk 0:00:50]} 39. Qxb7 {[%clk 0:00:15]}  Qxc3 {[%clk 0:00:47]} 40. Qc6 {[%clk 0:00:07]}  Qf3+ {[%clk 0:00:47]} 41. Ke1 {[%clk 0:00:06]}  Qxg3+ {[%clk 0:00:48]} 42. Kd2 {[%clk 0:00:06]}  Qf4+ {[%clk 0:00:47]} 43. Kd1 {[%clk 0:00:06]}  g3 {[%clk 0:00:46]} 44. Qc8 {[%clk 0:00:04]}  Ke5 {[%clk 0:00:43]} 45. Qe8+ {[%clk 0:00:03]}  Kxd5 {[%clk 0:00:42]} 46. Qa8+ {[%clk 0:00:04]}  Kd4 {[%clk 0:00:43]} 47. Qh8+ {[%clk 0:00:03]}  Kd3 {[%clk 0:00:42]} 48. Qh7+ {[%clk 0:00:04]}  Ke3 {[%clk 0:00:42]} 49. Qe7+ {[%clk 0:00:03]}  Kf2 {[%clk 0:00:36]} 50. Qe2+ {[%clk 0:00:02]}  Kg1 {[%clk 0:00:36]} 51. Kc2 {[%clk 0:00:01]}  Qf2 {[%clk 0:00:35]} 0-1


[Site "https://www.chess.com"]

[Event "Titled Tuesday Blitz May 10 Early 2022"]
[White "Trimitzios, Petros"]
[Black "Carlsen, Magnus"]
[WhiteFideId "25808796"]
[BlackFideId "1503014"]
[WhiteElo "2049"]
[BlackElo "2832"]
[Result "0-1"]
[Round "03"]
[TimeControl "180+1"]
[Date "2022.05.10"]
[WhiteClock "0:00:02"]
[BlackClock "0:01:36"]

1. Nf3 {[%clk 0:03:00]}  b6 {[%clk 0:02:58]} 2. e4 {[%clk 0:03:00]}  Bb7 {[%clk 0:02:59]} 3. Bc4 {[%clk 0:03:00]}  e6 {[%clk 0:02:57]} 4. Nc3 {[%clk 0:02:59]}  Nf6 {[%clk 0:02:56]} 5. Qe2 {[%clk 0:02:59]}  d5 {[%clk 0:02:50]} 6. exd5 {[%clk 0:02:59]}  Nxd5 {[%clk 0:02:50]} 7. Nxd5 {[%clk 0:02:57]}  Bxd5 {[%clk 0:02:50]} 8. Bxd5 {[%clk 0:02:57]}  Qxd5 {[%clk 0:02:50]} 9. d4 {[%clk 0:02:56]}  Be7 {[%clk 0:02:40]} 10. O-O {[%clk 0:02:55]}  O-O {[%clk 0:02:39]} 11. c4 {[%clk 0:02:53]}  Qf5 {[%clk 0:02:32]} 12. Be3 {[%clk 0:02:50]}  Bf6 {[%clk 0:02:31]} 13. Rfd1 {[%clk 0:02:49]}  Rd8 {[%clk 0:02:25]} 14. Rac1 {[%clk 0:02:48]}  Nc6 {[%clk 0:02:16]} 15. b3 {[%clk 0:02:47]}  h6 {[%clk 0:02:14]} 16. Rd2 {[%clk 0:02:44]}  Rd7 {[%clk 0:02:13]} 17. Rcd1 {[%clk 0:02:45]}  Rad8 {[%clk 0:02:13]} 18. h3 {[%clk 0:02:43]}  Qe4 {[%clk 0:02:13]} 19. Kf1 {[%clk 0:02:10]}  a5 {[%clk 0:02:07]} 20. a3 {[%clk 0:01:49]}  Be7 {[%clk 0:02:03]} 21. Ra1 {[%clk 0:01:40]}  f5 {[%clk 0:02:01]} 22. Qd3 {[%clk 0:01:10]}  Qxd3+ {[%clk 0:02:01]} 23. Rxd3 {[%clk 0:01:11]}  e5 {[%clk 0:02:02]} 24. Rdd1 {[%clk 0:01:01]}  e4 {[%clk 0:01:59]} 25. Ne1 {[%clk 0:00:52]}  Nxd4 {[%clk 0:01:59]} 26. Bxd4 {[%clk 0:00:51]}  Rxd4 {[%clk 0:02:00]} 27. Rxd4 {[%clk 0:00:51]}  Rxd4 {[%clk 0:02:01]} 28. Ke2 {[%clk 0:00:51]}  Bg5 {[%clk 0:01:59]} 29. Rd1 {[%clk 0:00:51]}  Rxd1 {[%clk 0:01:59]} 30. Kxd1 {[%clk 0:00:52]}  Be7 {[%clk 0:01:59]} 31. Nc2 {[%clk 0:00:51]}  Kf7 {[%clk 0:01:59]} 32. Ke2 {[%clk 0:00:52]}  Kf6 {[%clk 0:02:00]} 33. f3 {[%clk 0:00:46]}  Ke5 {[%clk 0:02:00]} 34. g3 {[%clk 0:00:41]}  g5 {[%clk 0:02:00]} 35. b4 {[%clk 0:00:34]}  a4 {[%clk 0:01:57]} 36. Ne3 {[%clk 0:00:31]}  c6 {[%clk 0:01:52]} 37. Nc2 {[%clk 0:00:23]}  f4 {[%clk 0:01:49]} 38. g4 {[%clk 0:00:22]}  exf3+ {[%clk 0:01:46]} 39. Kxf3 {[%clk 0:00:23]}  b5 {[%clk 0:01:45]} 40. c5 {[%clk 0:00:19]}  Bf6 {[%clk 0:01:42]} 41. Ne1 {[%clk 0:00:12]}  Kd4 {[%clk 0:01:43]} 42. Ng2 {[%clk 0:00:05]}  Kd3 {[%clk 0:01:38]} 43. Ne1+ {[%clk 0:00:02]}  Kd2 {[%clk 0:01:38]} 44. Ng2 {[%clk 0:00:02]}  Bb2 {[%clk 0:01:36]} 0-1


[Site "https://www.chess.com"]

[Event "Titled Tuesday Blitz May 10 Early 2022"]
[White "Tymrakiewicz, Rafal"]
[Black "Le, Tuan Minh"]
[WhiteFideId "1108832"]
[BlackFideId "12401153"]
[WhiteElo "2205"]
[BlackElo "2450"]
[Result "0-1"]
[Round "03"]
[TimeControl "180+1"]
[Date "2022.05.10"]
[WhiteClock "0:00:01"]
[BlackClock "0:00:06"]

1. e4 {[%clk 0:03:00]}  c5 {[%clk 0:03:00]} 2. c3 {[%clk 0:03:00]}  Nf6 {[%clk 0:03:00]} 3. e5 {[%clk 0:03:00]}  Nd5 {[%clk 0:03:01]} 4. Nf3 {[%clk 0:03:01]}  Nc6 {[%clk 0:03:01]} 5. Na3 {[%clk 0:02:51]}  d6 {[%clk 0:02:44]} 6. exd6 {[%clk 0:02:51]}  exd6 {[%clk 0:02:44]} 7. d4 {[%clk 0:02:50]}  cxd4 {[%clk 0:02:44]} 8. cxd4 {[%clk 0:02:49]}  Be7 {[%clk 0:02:45]} 9. Be2 {[%clk 0:02:47]}  O-O {[%clk 0:02:45]} 10. O-O {[%clk 0:02:47]}  Re8 {[%clk 0:02:45]} 11. Re1 {[%clk 0:02:39]}  Bf6 {[%clk 0:02:43]} 12. Nb5 {[%clk 0:02:34]}  a6 {[%clk 0:02:41]} 13. Nc3 {[%clk 0:02:34]}  Nxc3 {[%clk 0:02:41]} 14. bxc3 {[%clk 0:02:34]}  d5 {[%clk 0:02:37]} 15. Bf4 {[%clk 0:02:32]}  Qa5 {[%clk 0:02:29]} 16. Qb3 {[%clk 0:02:28]}  h6 {[%clk 0:02:17]} 17. Bd3 {[%clk 0:02:22]}  Be6 {[%clk 0:02:11]} 18. Ne5 {[%clk 0:01:55]}  Bxe5 {[%clk 0:02:10]} 19. Bxe5 {[%clk 0:01:55]}  Rac8 {[%clk 0:02:03]} 20. Bf4 {[%clk 0:01:50]}  b5 {[%clk 0:01:59]} 21. Rac1 {[%clk 0:01:26]}  Qb6 {[%clk 0:01:28]} 22. Qa3 {[%clk 0:01:16]}  b4 {[%clk 0:01:20]} 23. Qb2 {[%clk 0:01:10]}  a5 {[%clk 0:01:13]} 24. cxb4 {[%clk 0:01:09]}  axb4 {[%clk 0:00:31]} 25. Be3 {[%clk 0:00:44]}  Na5 {[%clk 0:00:29]} 26. Rb1 {[%clk 0:00:43]}  Rb8 {[%clk 0:00:27]} 27. Qe2 {[%clk 0:00:31]}  Qc6 {[%clk 0:00:17]} 28. Qh5 {[%clk 0:00:23]}  Bd7 {[%clk 0:00:12]} 29. Bf4 {[%clk 0:00:19]}  Rbc8 {[%clk 0:00:11]} 30. g4 {[%clk 0:00:16]}  Rxe1+ {[%clk 0:00:08]} 31. Rxe1 {[%clk 0:00:15]}  Qc3 {[%clk 0:00:09]} 32. Re3 {[%clk 0:00:10]}  Qxd4 {[%clk 0:00:08]} 33. Be5 {[%clk 0:00:11]}  Qxg4+ {[%clk 0:00:08]} 34. Qxg4 {[%clk 0:00:10]}  Bxg4 {[%clk 0:00:09]} 35. Rg3 {[%clk 0:00:10]}  f5 {[%clk 0:00:05]} 36. h3 {[%clk 0:00:07]}  Rc1+ {[%clk 0:00:05]} 37. Kg2 {[%clk 0:00:07]}  Bh5 {[%clk 0:00:04]} 38. Rxg7+ {[%clk 0:00:07]}  Kf8 {[%clk 0:00:04]} 39. Ra7 {[%clk 0:00:06]}  Nc6 {[%clk 0:00:05]} 40. Bd6+ {[%clk 0:00:07]}  Ke8 {[%clk 0:00:05]} 41. Bb5 {[%clk 0:00:07]}  Kd8 {[%clk 0:00:05]} 42. Bc7+ {[%clk 0:00:06]}  Kc8 {[%clk 0:00:05]} 43. Ba6+ {[%clk 0:00:05]}  Kd7 {[%clk 0:00:06]} 44. Bf4+ {[%clk 0:00:02]}  Nxa7 {[%clk 0:00:06]} 45. Bxc1 {[%clk 0:00:03]}  Bf7 {[%clk 0:00:05]} 46. Bxh6 {[%clk 0:00:03]}  d4 {[%clk 0:00:05]} 47. Bg7 {[%clk 0:00:02]}  Nc6 {[%clk 0:00:06]} 48. Bb5 {[%clk 0:00:01]}  Bxa2 {[%clk 0:00:06]} 49. Bxd4 {[%clk 0:00:01]}  Kd6 {[%clk 0:00:06]} 0-1


[Site "https://www.chess.com"]